bitfinex-derivatives/quotes_BTCF0:USTF0_20250108
["timestamp","ask_amount","ask_price","bid_price","bid_amount"]
[1736349368802,0.00011299,95066.0,95061.0,0.052605]
[1736349368996,0.00011299,95066.0,95048.0,0.3608]
[1736349368997,0.15538727,95053.0,95048.0,0.3608]
[1736349369197,0.15538727,95053.0,95052.0,0.05261]
[1736349369497,0.18659064,95061.0,95060.0,0.052606]
[1736349369692,0.18659064,95061.0,95060.0,0.45943319]
[1736349370094,0.00011299,95066.0,95065.0,0.052603]
[1736349370295,0.00011299,95066.0,95065.0,0.09863019]
[1736349370502,0.00011299,95066.0,95065.0,0.04602719]
[1736349370804,0.00011299,95066.0,95044.0,0.18816684]
[1736349371010,0.052614,95046.0,95044.0,0.18816684]
[1736349372108,0.052614,95046.0,95041.0,0.413416]
[1736349372607,0.052614,95046.0,95042.0,0.052615]
[1736349372803,0.052614,95046.0,95043.0,0.052615]
[1736349373007,0.3608,95050.0,95041.0,0.3608]
[1736349373203,0.00011299,95066.0,95042.0,0.04606613]
[1736349373407,0.052611,95051.0,95049.0,0.3608]
[1736349373595,0.3608,95059.0,95044.0,0.052614]
[1736349373905,0.052611,95050.0,95041.0,0.3608]
[1736349374101,0.3608,95059.0,95045.0,0.052614]
[1736349374300,0.052615,95043.0,95041.0,0.3608]
[1736349374500,0.052615,95043.0,95042.0,0.04607883]
[1736349374700,0.3608,95059.0,95036.0,0.47128]
[1736349374701,0.3608,95047.0,95036.0,0.47128]
[1736349374899,0.052621,95034.0,95032.0,0.18829837]
[1736349375510,0.052621,95034.0,95032.0,0.00013153]
[1736349377102,0.00010523,95033.0,95032.0,0.00013153]
[1736349378205,0.052627,95022.0,95021.0,0.00157844]
[1736349378402,0.413427,95022.0,95021.0,0.00157844]
[1736349378711,0.3608,95022.0,95021.0,0.00157844]
[1736349379601,0.37923246,95022.0,95021.0,0.00157844]
[1736349380005,0.74003246,95022.0,94996.0,0.052641]
[1736349380201,0.74003246,95022.0,94997.0,0.04602868]
[1736349380202,0.3608,95007.0,94997.0,0.04602868]
[1736349380406,0.052638,95003.0,94989.0,0.54896684]
[1736349380603,0.052638,95003.0,94989.0,0.18816684]
[1736349381307,0.052638,95003.0,95001.0,1e-08]
[1736349381512,9.697e-05,95006.0,94973.0,0.3608]
[1736349381513,0.052651,94979.0,94973.0,0.3608]
[1736349381695,0.052652,94978.0,94973.0,0.3608]
[1736349382107,0.3608,94988.0,94981.0,0.052649]
[1736349382309,0.3608,94997.0,94989.0,0.052645]
[1736349382698,9.697e-05,95006.0,94995.0,0.3608]
[1736349383013,9.697e-05,95006.0,95005.0,0.3608]
[1736349383501,0.24792541,95040.0,95031.0,0.052622]
[1736349383701,0.24880542,95040.0,95039.0,0.052617]
[1736349383921,0.24792541,95040.0,95039.0,0.052617]
[1736349384208,0.3608,95045.0,95031.0,0.3608]
[1736349384411,0.3608,95054.0,95031.0,0.3608]
[1736349384728,9.438e-05,95053.0,95048.0,0.3608]
[1736349384910,0.21715978,95064.0,95049.0,0.47144]
[1736349385114,0.0015787,95068.0,95067.0,0.052602]
[1736349385609,0.3623787,95068.0,95050.0,0.1589]
[1736349385804,0.3608,95058.0,95047.0,0.00056]
[1736349386002,0.052616,95041.0,95040.0,0.472]
[1736349386209,0.052616,95041.0,95040.0,0.72070785]
[1736349386804,0.3608,95044.0,95040.0,0.72070785]
[1736349387006,0.00011781,95057.0,95040.0,0.72070785]
[1736349387206,0.00011781,95057.0,95049.0,0.3608]
[1736349387405,0.00011781,95057.0,95055.0,0.052608]
[1736349387608,0.05261,95053.0,95051.0,0.3608]
[1736349387813,0.052611,95050.0,95049.0,0.3608]
[1736349388011,0.052618,95037.0,95036.0,0.2493732]
[1736349389122,0.052618,95037.0,95036.0,0.00010535]
[1736349390824,0.3608,95044.0,95036.0,0.00010535]
[1736349391023,0.3608,95048.0,95036.0,0.00010535]
[1736349391417,0.05272581,95057.0,95043.0,0.3608]
[1736349391618,0.00011781,95057.0,95055.0,0.413408]
[1736349391812,0.00011781,95057.0,95043.0,0.3608]
[1736349392023,0.3608,95052.0,95037.0,0.1351]
[1736349392235,0.052618,95038.0,95034.0,0.00056]
[1736349392428,0.052618,95038.0,95028.0,0.18771697]
[1736349393729,0.052618,95038.0,95027.0,0.3608]
[1736349393925,0.052618,95038.0,95023.0,0.052626]
[1736349394229,0.052618,95038.0,95017.0,0.3608]
[1736349394730,0.052619,95036.0,95011.0,0.0015787]
[1736349394921,0.3608,95021.0,95013.0,0.052632]
[1736349395119,0.3608,95021.0,95011.0,0.0015787]
[1736349395120,0.052624,95028.0,95017.0,0.052629]
[1736349395319,0.3608,95029.0,95011.0,0.0015787]
[1736349395517,0.052629,95018.0,95013.0,0.052632]
[1736349395927,0.052632,95013.0,95011.0,0.0015787]
[1736349396523,0.052632,95013.0,95011.0,0.0542107]
[1736349397035,0.052632,95013.0,95011.0,0.0015787]
[1736349397426,0.3608,95016.0,95001.0,0.18771697]
[1736349397638,0.3608,95016.0,95000.0,0.00011972]
[1736349397639,0.413438,95002.0,95000.0,0.00011972]
[1736349399034,0.052649,94983.0,94976.0,0.052652]
[1736349399233,0.3608,94980.0,94972.0,0.18771697]
[1736349399430,0.052654,94973.0,94972.0,0.18771697]
[1736349400136,0.00013393,94973.0,94966.0,0.00157943]
[1736349400441,0.052657,94968.0,94966.0,0.00157943]
[1736349400736,0.052666,94952.0,94950.0,0.18771697]
[1736349401236,0.3608,94967.0,94950.0,0.18771697]
[1736349401435,0.052666,94952.0,94943.0,0.48784]
[1736349401630,0.3608,94959.0,94943.0,0.47204]
[1736349401833,0.052668,94948.0,94943.0,0.47144]
[1736349402227,0.052668,94948.0,94939.0,0.052673]
[1736349402228,0.052673,94940.0,94933.0,0.18771697]
[1736349402433,0.052676,94934.0,94933.0,0.18771697]
[1736349402626,0.052676,94934.0,94915.0,0.37410134]
[1736349402627,0.3608,94934.0,94930.0,0.18771697]
[1736349402827,0.052677,94931.0,94930.0,0.18771697]
[1736349403222,0.3608,94934.0,94930.0,0.18771697]
[1736349403430,0.3608,94939.0,94930.0,0.18771697]
[1736349403639,0.052675,94935.0,94930.0,0.18771697]
[1736349404227,0.3608,94939.0,94930.0,0.18771697]
[1736349404432,0.3608,94939.0,94921.0,0.00158005]
[1736349404433,0.00010141,94947.0,94936.0,0.052674]
[1736349404627,0.00010141,94947.0,94928.0,0.3608]
[1736349404933,0.00010141,94947.0,94921.0,0.00158005]
[1736349404934,0.00010141,94947.0,94946.0,0.3608]
[1736349405137,0.3608,94984.0,94946.0,0.3608]
[1736349405334,0.02315423,94994.0,94976.0,0.3608]
[1736349405526,0.3608,95003.0,94984.0,0.3608]
[1736349405727,0.3608,95003.0,94994.0,0.052642]
[1736349405932,0.052629,95019.0,94994.0,0.052642]
[1736349406140,0.00011688,94995.0,94994.0,0.052642]
[1736349407142,0.00011688,94995.0,94992.0,0.3608]
[1736349407636,0.00011688,94995.0,94994.0,0.052642]
[1736349407835,0.3608,95032.0,94994.0,0.052642]
[1736349408033,0.02242679,95029.0,95006.0,0.3608]
[1736349408339,0.24558378,95020.0,95004.0,0.3608]
[1736349408851,0.00013516,95019.0,95015.0,0.3608]
[1736349409038,0.00013516,95019.0,95018.0,0.052629]
[1736349409243,0.3608,95022.0,95008.0,0.052634]
[1736349409540,0.052635,95008.0,95006.0,0.3608]
[1736349410128,0.052642,94994.0,94993.0,0.00056]
[1736349410330,0.3608,94996.0,94986.0,0.3608]
[1736349410530,8.895e-05,95007.0,94995.0,0.3608]
[1736349410730,0.05272495,95007.0,95005.0,0.3608]
[1736349411239,0.052636,95005.0,94984.0,0.3608]
[1736349411429,8.895e-05,95007.0,94975.0,0.30247985]
[1736349411430,0.052646,94988.0,94975.0,0.052652]
[1736349411631,0.052642,94996.0,94986.0,0.052647]
[1736349411836,0.3608,95006.0,94986.0,0.052647]
[1736349412147,0.3608,95006.0,94991.0,0.3608]
[1736349412438,0.3608,95006.0,94980.0,0.41345]
[1736349412640,0.05264,94998.0,94989.0,0.3608]
[1736349412842,0.3608,95006.0,94989.0,0.3608]
[1736349413041,8.895e-05,95007.0,94997.0,0.3608]
[1736349413238,8.895e-05,95007.0,95005.0,0.052636]
[1736349413544,8.895e-05,95007.0,94997.0,0.3608]
[1736349413726,0.052621,95033.0,95025.0,0.052625]
[1736349413931,0.1743,95060.0,95032.0,0.3608]
[1736349414132,0.05261,95053.0,95040.0,0.413417]
[1736349414340,0.1743,95060.0,95040.0,0.3608]
[1736349414341,0.44319309,95060.0,95040.0,0.3608]
[1736349414534,0.052616,95042.0,95031.0,0.3608]
[1736349414747,0.052621,95032.0,95031.0,0.3608]
[1736349415049,0.052609,95055.0,95031.0,0.3608]
[1736349415050,0.1743,95060.0,95034.0,0.05262]
[1736349415239,0.1743,95060.0,95040.0,0.3608]
[1736349415240,0.052616,95042.0,95040.0,0.3608]
[1736349416649,0.05261,95053.0,95040.0,0.413417]
[1736349416938,0.052611,95051.0,95040.0,0.413417]
[1736349417140,0.052607,95058.0,95040.0,0.413417]
[1736349417338,0.1743,95060.0,95040.0,0.413417]
[1736349417541,0.54727717,95098.0,95040.0,0.6608]
[1736349417741,0.54727717,95098.0,95080.0,0.3608]
[1736349417742,0.3608,95098.0,95080.0,0.3608]
[1736349417943,0.052594,95082.0,95080.0,0.3608]
[1736349418333,0.052592,95085.0,95080.0,0.3608]
[1736349418642,0.052593,95084.0,95080.0,0.3608]
[1736349418847,0.38341464,95098.0,95080.0,0.3608]
[1736349419143,0.052594,95082.0,95080.0,0.3608]
[1736349419441,0.052594,95082.0,95080.0,0.32534001]
[1736349420140,0.3608,95088.0,95061.0,0.3608]
[1736349420341,0.3608,95088.0,95054.0,0.00065271]
[1736349420342,0.052608,95055.0,95054.0,9.271e-05]
[1736349420843,0.3608,95070.0,95054.0,9.271e-05]
[1736349421042,0.052597,95076.0,95069.0,0.3608]
[1736349421241,0.1,95100.0,95076.0,0.3608]
[1736349421449,0.1,95100.0,95095.0,0.7216]
[1736349421647,0.3608,95121.0,95095.0,0.7216]
[1736349421648,0.052576,95115.0,95095.0,0.7216]
[1736349421947,0.052575,95115.0,95114.0,0.7216]
[1736349422330,0.02006208,95121.0,95101.0,0.3608]
[1736349422535,0.052575,95117.0,95101.0,0.3608]
[1736349422736,0.02006208,95121.0,95110.0,0.3608]
[1736349422934,0.052578,95111.0,95110.0,0.3608]
[1736349423338,0.05415237,95118.0,95110.0,0.3608]
[1736349423546,0.05415237,95118.0,95117.0,0.052574]
[1736349423547,0.00157837,95118.0,95117.0,0.052574]
[1736349423844,0.3608,95159.0,95125.0,0.05257]
[1736349423845,0.052563,95138.0,95125.0,0.05257]
[1736349424050,0.05256,95144.0,95133.0,0.7216]
[1736349424238,0.1691,95156.0,95143.0,0.3608]
[1736349424547,0.052553,95155.0,95153.0,0.3608]
[1736349425644,0.02014381,95162.0,95153.0,0.3608]
[1736349425946,0.00157745,95170.0,95150.0,0.3608]
[1736349426134,0.052555,95151.0,95150.0,0.3608]
[1736349426333,0.05256,95143.0,95141.0,0.3608]
[1736349426538,0.05256,95143.0,95141.0,0.32122687]
[1736349426742,0.052566,95132.0,95131.0,0.3608]
[1736349426937,0.052571,95122.0,95121.0,0.00012605]
[1736349427551,0.1791,95149.0,95126.0,0.052569]
[1736349427851,0.1791,95149.0,95134.0,0.3608]
[1736349427852,0.052564,95135.0,95134.0,0.3608]
[1736349428546,0.3608,95141.0,95125.0,0.3608]
[1736349428745,0.052569,95126.0,95125.0,0.3608]
[1736349428949,0.052571,95122.0,95121.0,0.00012605]
[1736349429145,0.052571,95122.0,95105.0,0.3608]
[1736349429146,0.05258,95106.0,95105.0,0.3608]
[1736349429341,0.3608,95133.0,95105.0,0.3608]
[1736349429650,0.3608,95144.0,95114.0,0.3608]
[1736349429848,0.3608,95144.0,95122.0,0.3608]
[1736349430035,0.00011976,95143.0,95130.0,0.3608]
[1736349430550,0.052566,95133.0,95130.0,0.3608]
[1736349430739,0.00011976,95143.0,95130.0,0.3608]
[1736349430937,0.052566,95132.0,95130.0,0.3608]
[1736349431143,0.052562,95139.0,95130.0,0.413367]
[1736349431342,0.052562,95139.0,95138.0,0.3608]
[1736349431844,0.052566,95131.0,95130.0,0.3608]
[1736349432047,0.3608,95133.0,95098.0,0.3608]
[1736349432249,0.052575,95116.0,95107.0,0.3608]
[1736349432445,0.052571,95123.0,95115.0,0.3608]
[1736349432654,0.052572,95122.0,95115.0,0.3608]
[1736349432848,0.3608,95137.0,95107.0,0.3608]
[1736349433044,0.3608,95119.0,95090.0,0.0158]
[1736349433360,0.052586,95096.0,95076.0,0.052597]
[1736349433659,0.052586,95096.0,95090.0,0.3608]
[1736349434055,0.05259,95089.0,95077.0,0.3608]
[1736349434250,0.24558378,95100.0,95077.0,0.3608]
[1736349434553,0.052583,95102.0,95099.0,0.3608]
[1736349434751,0.052584,95099.0,95097.0,0.3608]
[1736349434943,0.24558378,95130.0,95098.0,0.3608]
[1736349435151,0.00012332,95120.0,95110.0,0.3608]
[1736349435356,0.052577,95112.0,95110.0,0.3608]
[1736349436058,0.052584,95099.0,95098.0,0.3608]
[1736349436353,0.052588,95092.0,95091.0,0.3608]
[1736349436856,0.05259,95089.0,95079.0,0.3608]
[1736349437054,0.052595,95080.0,95079.0,0.3608]
[1736349437357,0.05268256,95089.0,95072.0,0.36092808]
[1736349437358,0.052593,95084.0,95080.0,0.052595]
[1736349437651,9.256e-05,95089.0,95088.0,0.05259]
[1736349437855,9.256e-05,95089.0,95088.0,0.41339]
[1736349438263,0.1796,95123.0,95088.0,0.41339]
[1736349438451,0.1796,95123.0,95122.0,0.3608]
[1736349438452,0.07260461,95123.0,95122.0,0.3608]
[1736349438649,0.052577,95113.0,95111.0,0.3608]
[1736349439262,0.00011042,95112.0,95111.0,0.3608]
[1736349439758,0.052571,95123.0,95115.0,0.052575]
[1736349439957,0.052569,95127.0,95122.0,0.3608]
[1736349440146,0.41336,95143.0,95122.0,0.3608]
[1736349440350,0.02050435,95138.0,95130.0,0.3608]
[1736349440558,0.052566,95131.0,95130.0,0.3608]
[1736349440856,4.925e-05,95131.0,95130.0,0.3608]
[1736349441057,0.052559,95144.0,95133.0,0.052565]
[1736349441261,0.052555,95152.0,95146.0,0.052558]
[1736349441464,0.052555,95152.0,95151.0,0.3608]
[1736349441856,0.1847,95163.0,95151.0,0.3608]
[1736349442163,0.01997546,95173.0,95162.0,0.3608]
[1736349442455,0.3608,95178.0,95151.0,0.3608]
[1736349442656,0.052555,95153.0,95151.0,0.3608]
[1736349444152,0.052561,95141.0,95140.0,0.00068916]
[1736349444364,0.052561,95141.0,95133.0,0.18664669]
[1736349444365,0.052565,95134.0,95133.0,0.18664669]
[1736349444565,0.052565,95134.0,95133.0,0.16541756]
[1736349444955,0.3608,95146.0,95127.0,0.3608]
[1736349445154,0.24558378,95140.0,95127.0,0.3608]
[1736349445355,0.00010481,95139.0,95135.0,0.3608]
[1736349445667,0.052564,95137.0,95135.0,0.3608]
[1736349447266,0.3608,95138.0,95128.0,0.18253857]
[1736349447469,0.3608,95129.0,95128.0,0.18253857]
[1736349447668,0.052571,95122.0,95121.0,0.31107782]
[1736349447856,0.052571,95122.0,95121.0,0.27750782]
[1736349448355,0.052571,95122.0,95117.0,0.00157696]
[1736349448554,0.413374,95118.0,95117.0,0.00157696]
[1736349448756,0.052574,95118.0,95117.0,0.00157696]
[1736349449464,0.7077,95136.0,95117.0,0.00157696]
[1736349449674,0.3608,95146.0,95129.0,0.3608]
[1736349449857,0.05266681,95139.0,95137.0,0.3608]
[1736349451465,0.413351,95159.0,95137.0,0.3608]
[1736349451761,0.052562,95139.0,95137.0,0.3608]
[1736349452462,0.052562,95139.0,95119.0,0.3608]
[1736349452759,0.052573,95120.0,95119.0,0.3608]
[1736349452961,0.052574,95118.0,95117.0,0.00157696]
[1736349453155,0.052569,95127.0,95117.0,0.05415096]
[1736349453362,0.052568,95128.0,95126.0,0.3608]
[1736349453756,0.3608,95153.0,95126.0,0.3608]
[1736349453955,0.3608,95153.0,95137.0,0.3608]
[1736349454168,0.052563,95138.0,95137.0,0.3608]
[1736349454872,0.052553,95157.0,95147.0,0.052558]
[1736349455068,0.12475328,95167.0,95148.0,0.3608]
[1736349455366,0.12475328,95167.0,95148.0,0.40687656]
[1736349455571,0.05255,95162.0,95160.0,0.3608]
[1736349455960,0.3651,95184.0,95160.0,0.3608]
[1736349456279,0.052544,95173.0,95170.0,0.3608]
[1736349456565,0.0201227,95183.0,95170.0,0.3608]
[1736349456760,0.00157696,95183.0,95178.0,0.3608]
[1736349456959,0.05254,95179.0,95178.0,0.3608]
[1736349457468,0.00157696,95183.0,95178.0,0.41334]
[1736349457673,0.052539,95180.0,95178.0,0.3608]
[1736349458667,0.00157696,95183.0,95181.0,0.052538]
[1736349459268,0.00157696,95183.0,95182.0,0.3608]
[1736349459789,0.052546,95169.0,95167.0,0.47152]
[1736349459962,0.052546,95169.0,95164.0,0.3608]
[1736349459963,0.052548,95165.0,95164.0,0.3608]
[1736349460162,0.052555,95151.0,95150.0,0.37329339]
[1736349460467,0.052553,95155.0,95150.0,0.37329339]
[1736349460663,0.3437,95172.0,95147.0,0.3608]
[1736349460664,0.052555,95152.0,95147.0,0.3608]
[1736349461065,0.052542,95176.0,95147.0,0.3608]
[1736349461066,0.052547,95167.0,95156.0,0.052552]
[1736349461270,0.3608,95181.0,95166.0,0.3608]
[1736349461469,0.3608,95181.0,95164.0,0.3608]
[1736349461778,0.3608,95171.0,95143.0,0.3608]
[1736349461972,0.3608,95161.0,95143.0,0.3608]
[1736349462162,0.052558,95146.0,95143.0,0.3608]
[1736349462369,0.052552,95158.0,95143.0,0.3608]
[1736349462572,0.18412,95180.0,95154.0,0.3608]
[1736349462773,0.052545,95170.0,95168.0,0.3608]
[1736349463080,0.052542,95176.0,95168.0,0.3608]
[1736349463271,0.0183288,95180.0,95174.0,0.052543]
[1736349463466,0.3608,95189.0,95177.0,0.3608]
[1736349463667,0.05254,95179.0,95177.0,0.3608]
[1736349463871,0.052536,95187.0,95181.0,0.052539]
[1736349464168,0.052536,95187.0,95186.0,0.3608]
[1736349465872,0.01800439,95191.0,95164.0,0.3608]
[1736349465873,0.052541,95178.0,95164.0,0.3608]
[1736349466077,0.052548,95166.0,95164.0,0.3608]
[1736349466469,0.3608,95185.0,95164.0,0.3608]
[1736349466677,0.052547,95166.0,95164.0,0.3608]
[1736349467769,0.052543,95173.0,95164.0,0.3608]
[1736349468078,0.01821882,95183.0,95172.0,0.3608]
[1736349468277,0.5315,95195.0,95172.0,0.3608]
[1736349468278,0.3608,95195.0,95182.0,0.3608]
[1736349468481,0.12475328,95200.0,95194.0,0.3608]
[1736349468687,0.05253,95198.0,95194.0,0.3608]
[1736349468972,0.052531,95195.0,95194.0,0.3608]
[1736349469368,0.05253,95198.0,95194.0,0.3608]
[1736349469769,0.15589785,95201.0,95198.0,0.052529]
[1736349470077,0.02000196,95203.0,95194.0,0.3608]
[1736349470277,0.02000196,95203.0,95202.0,0.3608]
[1736349470673,0.38080196,95203.0,95193.0,0.3608]
[1736349470877,0.052544,95171.0,95163.0,0.052548]
[1736349471176,0.052544,95171.0,95170.0,0.36092509]
[1736349471480,0.3608,95195.0,95171.0,0.052544]
[1736349471678,0.052538,95182.0,95180.0,0.3608]
[1736349471866,0.052539,95181.0,95180.0,0.3608]
[1736349472068,0.052544,95172.0,95171.0,0.3608]
[1736349472666,0.052539,95180.0,95170.0,0.00012509]
[1736349472875,0.052544,95171.0,95170.0,0.00012509]
[1736349474274,0.05264291,95171.0,95151.0,0.3608]
[1736349474469,0.60638378,95161.0,95136.0,0.3608]
[1736349474671,0.05256,95144.0,95128.0,0.3608]
[1736349474874,0.052568,95129.0,95128.0,0.3608]
[1736349475374,0.05265995,95129.0,95128.0,0.3608]
[1736349476174,9.195e-05,95129.0,95128.0,0.413368]
[1736349476770,0.12499912,95150.0,95130.0,0.052567]
[1736349476966,0.12499912,95150.0,95136.0,0.3608]
[1736349476967,0.052563,95137.0,95136.0,0.3608]
[1736349477774,0.05262049,95137.0,95136.0,0.3608]
[1736349478683,0.12657631,95162.0,95136.0,1.0216]
[1736349478684,0.12499912,95152.0,95136.0,1.0216]
[1736349478879,0.06410688,95152.0,95151.0,0.413355]
[1736349479269,0.06410688,95152.0,95151.0,0.45936045]
[1736349479667,0.15589785,95158.0,95157.0,0.052552]
[1736349479873,0.00157719,95162.0,95161.0,0.05255]
[1736349480277,0.57781363,95208.0,95157.0,0.8322]
[1736349480278,0.1827,95194.0,95157.0,0.8322]
[1736349480481,0.57781363,95208.0,95188.0,0.3608]
[1736349480482,0.052534,95190.0,95188.0,0.3608]
[1736349480676,0.05253,95198.0,95190.0,0.052534]
[1736349481083,0.23854168,95197.0,95190.0,0.052534]
[1736349481282,0.15589785,95201.0,95199.0,0.052529]
[1736349481483,0.15589785,95201.0,95200.0,0.3608]
[1736349482270,0.18601168,95207.0,95206.0,0.052525]
[1736349482477,0.00157633,95214.0,95213.0,0.052521]
[1736349482677,0.00157633,95214.0,95213.0,0.413321]
[1736349483985,0.052508,95238.0,95213.0,0.67656]
[1736349484187,0.36164,95264.0,95240.0,0.052506]
[1736349484378,0.24882796,95263.0,95262.0,0.3608]
[1736349484584,0.06972796,95263.0,95262.0,0.3608]
[1736349485087,0.00084,95269.0,95262.0,0.3608]
[1736349485480,0.00084,95282.0,95264.0,0.052493]
[1736349485682,0.052488,95274.0,95273.0,0.3608]
[1736349486388,0.052488,95274.0,95238.0,0.00010739]
[1736349486389,0.052507,95239.0,95238.0,0.00010739]
[1736349486771,0.3608,95256.0,95238.0,0.00010739]
[1736349486985,0.052505,95244.0,95242.0,0.3608]
[1736349487376,0.052507,95239.0,95238.0,0.00010739]
[1736349488377,0.052503,95247.0,95238.0,0.00010739]
[1736349488572,0.3608,95265.0,95238.0,0.00010739]
[1736349488573,0.052494,95263.0,95251.0,0.0525]
[1736349488786,0.3608,95273.0,95262.0,0.3608]
[1736349489291,0.052488,95273.0,95262.0,0.3608]
[1736349489581,0.052488,95273.0,95239.0,0.4706]
[1736349489582,0.3608,95273.0,95243.0,0.3608]
[1736349489772,0.052499,95253.0,95243.0,0.3608]
[1736349489978,0.052492,95267.0,95252.0,0.3608]
[1736349490176,0.052499,95253.0,95252.0,0.3608]
[1736349490377,0.052499,95254.0,95252.0,0.3608]
[1736349490590,0.01700474,95270.0,95252.0,0.413299]
[1736349490888,0.052494,95262.0,95260.0,0.3608]
[1736349492680,0.3608,95265.0,95248.0,0.3608]
[1736349492877,0.052501,95249.0,95248.0,0.3608]
[1736349493385,0.052494,95262.0,95252.0,0.052499]
[1736349493580,0.01700474,95270.0,95261.0,0.3608]
[1736349493779,0.36237545,95295.0,95262.0,0.3608]
[1736349493981,0.052492,95267.0,95262.0,0.3608]
[1736349494188,0.05406862,95264.0,95262.0,0.3608]
[1736349494388,0.00157562,95264.0,95262.0,0.3608]
[1736349494583,0.00157562,95264.0,95263.0,0.068254]
[1736349494980,0.00157562,95264.0,95262.0,0.3608]
[1736349495290,0.00157562,95264.0,95245.0,0.01576]
[1736349495484,0.00157562,95264.0,95242.0,0.3608]
[1736349495485,0.00157562,95264.0,95250.0,0.3608]
[1736349495790,0.00016112,95262.0,95261.0,0.3608]
[1736349496091,0.00016112,95262.0,95261.0,0.413295]
[1736349496683,0.00016112,95262.0,95261.0,0.3608]
[1736349497590,0.052494,95263.0,95261.0,0.3608]
[1736349497591,0.04979066,95263.0,95261.0,0.3608]
[1736349498085,0.00157562,95264.0,95261.0,0.3608]
[1736349498283,0.052494,95263.0,95261.0,0.3608]
[1736349498682,0.00157562,95264.0,95261.0,0.3608]
[1736349498877,0.00157562,95264.0,95262.0,0.052494]
[1736349499386,0.052488,95273.0,95268.0,0.052491]
[1736349499698,0.052488,95273.0,95272.0,0.3608]
[1736349501790,0.01643687,95274.0,95248.0,0.36237476]
[1736349501990,0.052501,95249.0,95248.0,0.36237476]
[1736349502383,0.052501,95249.0,95248.0,0.00157476]
[1736349503491,0.052506,95240.0,95221.0,0.3608]
[1736349503688,0.052521,95214.0,95212.0,0.3608]
[1736349504489,0.3538,95239.0,95212.0,0.3608]
[1736349504696,0.3538,95239.0,95220.0,0.3608]
[1736349504697,0.052517,95221.0,95220.0,0.3608]
[1736349504995,0.00010739,95221.0,95220.0,0.413317]
[1736349506087,0.01646043,95247.0,95220.0,0.6608]
[1736349506292,0.052502,95249.0,95247.0,0.052502]
[1736349506494,0.052502,95249.0,95248.0,0.052502]
[1736349507193,0.052497,95258.0,95246.0,0.72216]
[1736349507493,0.052496,95258.0,95257.0,0.3608]
[1736349507896,0.052502,95247.0,95246.0,0.3608]
[1736349508998,0.052494,95263.0,95258.0,0.052496]
[1736349509189,0.052495,95262.0,95259.0,0.413296]
[1736349509393,0.0694761,95260.0,95259.0,0.3608]
[1736349509601,0.05407059,95260.0,95259.0,0.3608]
[1736349511694,0.00157559,95260.0,95259.0,0.3608]
[1736349511898,0.00157559,95260.0,95259.0,0.413296]
[1736349513192,0.00157559,95260.0,95259.0,0.3608]
[1736349513193,0.05407059,95260.0,95259.0,0.3608]
[1736349514303,0.00157559,95260.0,95259.0,0.3608]
[1736349514505,0.00157559,95260.0,95259.0,0.413296]
[1736349514697,0.00157559,95260.0,95259.0,0.3608]
[1736349515003,0.05407059,95260.0,95259.0,0.3608]
[1736349515302,0.00157559,95260.0,95259.0,0.3608]
[1736349515497,0.05407059,95260.0,95259.0,0.3608]
[1736349517093,0.052499,95254.0,95253.0,0.22082683]
[1736349517299,0.052503,95246.0,95233.0,0.00064]
[1736349517602,0.0525,95253.0,95241.0,0.3608]
[1736349517795,0.052505,95242.0,95241.0,0.3608]
[1736349518202,0.15763888,95260.0,95241.0,0.3608]
[1736349518504,0.15763888,95260.0,95259.0,0.413296]
[1736349518706,0.17356849,95260.0,95259.0,0.45948702]
[1736349519206,0.17356849,95260.0,95259.0,0.40699102]
[1736349519397,0.22606349,95260.0,95259.0,0.40699102]
[1736349519604,0.15763888,95260.0,95259.0,0.45948702]
[1736349519905,0.00157559,95260.0,95259.0,0.45948702]
[1736349520905,0.05407059,95260.0,95259.0,0.45948702]
[1736349521707,0.00157559,95260.0,95259.0,0.45948702]
[1736349523510,0.052481,95286.0,95283.0,0.052483]
[1736349523704,0.20854529,95284.0,95283.0,0.45950541]
[1736349523907,0.15606329,95284.0,95283.0,0.413283]
[1736349524209,0.1,95300.0,95292.0,0.052478]
[1736349524512,0.1,95300.0,95299.0,0.052474]
[1736349524697,0.1,95300.0,95299.0,0.45950042]
[1736349525009,0.052482,95284.0,95271.0,0.3608]
[1736349525194,0.052482,95284.0,95272.0,0.04620485]
[1736349525398,0.052488,95274.0,95273.0,0.04620485]
[1736349525593,0.052493,95265.0,95263.0,0.413293]
[1736349525800,0.1744,95283.0,95264.0,0.04620738]
[1736349526006,0.052493,95265.0,95264.0,0.04620738]
[1736349526208,0.1744,95283.0,95264.0,0.04620738]
[1736349526209,0.052488,95274.0,95270.0,0.05249]
[1736349526407,0.1744,95283.0,95271.0,0.3608]
[1736349526599,0.052489,95272.0,95271.0,0.3608]
[1736349526910,0.052487,95276.0,95273.0,0.052488]
[1736349527108,0.052488,95274.0,95273.0,0.052488]
[1736349527406,0.052489,95272.0,95271.0,0.3608]
[1736349527605,0.01550364,95283.0,95271.0,0.40698088]
[1736349527795,0.18843595,95299.0,95282.0,0.3608]
[1736349527994,0.052479,95290.0,95283.0,0.04618088]
[1736349528197,0.25865797,95300.0,95283.0,0.04618088]
[1736349528399,0.15865797,95293.0,95282.0,0.3608]
[1736349528698,0.3608,95295.0,95271.0,0.3608]
[1736349528901,0.3608,95295.0,95273.0,0.052488]
[1736349529096,0.3608,95295.0,95280.0,0.3608]
[1736349529401,0.3608,95295.0,95271.0,0.3608]
[1736349529402,0.052489,95272.0,95271.0,0.3608]
[1736349529603,0.052487,95276.0,95271.0,0.3608]
[1736349529802,0.052482,95285.0,95271.0,0.3608]
[1736349529999,0.052489,95273.0,95271.0,0.3608]
[1736349530193,0.3608,95278.0,95260.0,0.3608]
[1736349530399,0.3608,95261.0,95258.0,0.25067467]
[1736349530607,0.052495,95260.0,95258.0,0.25067467]
[1736349530996,0.219786,95277.0,95258.0,0.25067467]
[1736349531195,0.219786,95277.0,95248.0,0.3608]
[1736349531196,0.219786,95277.0,95256.0,0.052497]